bitfinex-derivatives/quotes_SOLF0:USTF0_20250421
["timestamp","ask_amount","ask_price","bid_price","bid_amount"]
[1745232520858,13.38517545,139.71,139.69,7.1583]
[1745232521063,6.22737545,139.71,139.67,367.22737545]
[1745232521264,6.22737545,139.71,139.67,6.22737545]
[1745232521758,13.38487545,139.71,139.67,6.22737545]
[1745232521966,0.0502549,139.7,139.68,0.05212118]
[1745232522260,32.36737545,139.69,139.68,0.05212118]
[1745232522468,39.52587545,139.69,139.68,0.05212118]
[1745232527760,7.1594,139.68,139.65,7.1604]
[1745232528969,7.1594,139.68,139.65,7.2103885]
[1745232529171,7.1594,139.68,139.66,7.16]
[1745232529370,39.52617545,139.69,139.66,7.16]
[1745232532374,6.22737545,139.67,139.65,7.2103885]
[1745232532974,13.38717545,139.67,139.65,7.2103885]
[1745232533375,6.22737545,139.67,139.65,7.2103885]
[1745232534972,13.38697545,139.67,139.65,7.2103885]
[1745232535677,6.22737545,139.67,139.65,7.2103885]
[1745232537283,6.22737545,139.67,139.66,7.1601]
[1745232538482,6.22737545,139.67,139.65,7.2102885]
[1745232539783,6.22737545,139.67,139.66,7.1601]
[1745232540978,13.38657545,139.68,139.66,7.1601]
[1745232541180,26.14,139.69,139.66,6.22737545]
[1745232541380,26.14,139.69,139.68,6.22737545]
[1745232541582,26.14,139.69,139.68,13.38637545]
[1745232542185,0.0502549,139.7,139.69,7.1585]
[1745232548686,0.0502549,139.7,139.68,7.20962058]
[1745232549292,7.2082549,139.7,139.68,7.20962058]
[1745232549493,6.22737545,139.69,139.68,0.05082058]
[1745232550392,13.38587545,139.69,139.68,0.05082058]
[1745232550692,0.0502549,139.7,139.68,0.05082058]
[1745232550994,0.0502549,139.7,139.69,7.1585]
[1745232551794,32.36737545,139.75,139.72,7.1568]
[1745232551993,32.36737545,139.75,139.71,6.22737545]
[1745232552193,39.52327545,139.75,139.71,13.38447545]
[1745232552596,32.36737545,139.75,139.71,6.22737545]
[1745232552796,39.52297545,139.75,139.71,6.22737545]
[1745232552992,0.04562217,139.74,139.72,0.05184668]
[1745232553289,7.20162217,139.74,139.72,0.05363175]
[1745232553495,6.22737545,139.73,139.72,0.05363175]
[1745232554690,0.04562217,139.74,139.72,0.05363175]
[1745232554894,6.27299762,139.74,139.72,0.05363175]
[1745232555094,0.04562217,139.74,139.72,0.05363175]
[1745232555389,7.20182217,139.74,139.72,0.05363175]
[1745232558495,7.1565,139.73,139.72,0.05363175]
[1745232560504,0.04562217,139.74,139.72,0.05363175]
[1745232560705,0.04562217,139.74,139.72,6.2810072]
[1745232560904,0.04562217,139.74,139.73,7.1565]
[1745232561103,0.04562217,139.74,139.72,6.2810072]
[1745232563308,0.04562217,139.74,139.73,7.1565]
[1745232577921,7.1527,139.81,139.72,6.2810072]
[1745232578124,26.1,139.8,139.77,6.22737545]
[1745232578421,26.1,139.8,139.78,7.1537]
[1745232579121,26.15337139,139.8,139.79,7.1534]
[1745232580026,33.30627139,139.8,139.78,7.20634111]
[1745232580222,33.30627139,139.8,139.78,0.05274111]
[1745232581229,33.30627139,139.8,139.78,7.20664111]
[1745232582126,33.30627139,139.8,139.78,0.05274111]
[1745232584318,33.30627139,139.8,139.78,7.20644111]
[1745232586127,26.15337139,139.8,139.78,7.20644111]
[1745232586328,26.15337139,139.8,139.79,7.1534]
[1745232589731,26.15337139,139.8,139.79,13.38077545]
[1745232591132,0.05337139,139.8,139.79,13.38077545]
[1745232594433,0.05337139,139.8,139.79,7.1534]
[1745232594933,0.05337139,139.8,139.79,13.38077545]
[1745232598737,0.05337139,139.8,139.79,7.1534]
[1745232599937,0.05337139,139.8,139.78,7.20654111]
[1745232601439,0.05337139,139.8,139.79,7.1534]
[1745232601839,0.05337139,139.8,139.78,0.05274111]
[1745232602042,0.05337139,139.8,139.78,7.20624111]
[1745232602638,0.05337139,139.8,139.79,7.1534]
[1745232603338,0.05337139,139.8,139.79,13.38077545]
[1745232605440,26.1,139.83,139.82,7.1519]
[1745232606942,0.04637938,139.84,139.83,7.1513]
[1745232607143,26.08,139.87,139.83,6.22737545]
[1745232607343,26.08,139.87,139.85,6.22737545]
[1745232607543,26.08,139.87,139.86,7.1498]
[1745232610344,26.08,139.87,139.85,13.42907799]
[1745232610544,33.2294,139.87,139.85,13.42907799]
[1745232611145,26.08,139.87,139.85,13.42907799]
[1745232613340,26.08,139.87,139.86,7.1498]
[1745232613544,0.04820396,139.88,139.85,6.27897799]
[1745232613750,0.04820396,139.88,139.87,6.22737545]
[1745232614548,0.04820396,139.88,139.87,13.37667545]
[1745232616747,0.04820396,139.88,139.87,7.1493]
[1745232616947,0.04820396,139.88,139.87,13.37667545]
[1745232619738,592.62,139.93,139.91,7.1472]
[1745232620141,26.06,139.93,139.91,6.22737545]
[1745232620537,26.06,139.93,139.89,6.22737545]
[1745232620740,26.10589614,139.93,139.91,0.04644827]
[1745232620939,26.10589614,139.93,139.91,6.27382372]
[1745232621146,0.04589614,139.93,139.92,7.1467]
[1745232625548,0.04589614,139.93,139.91,13.42092372]
[1745232628152,0.04589614,139.93,139.92,7.1467]
[1745232630056,0.04589614,139.93,139.91,6.27382372]
[1745232630348,0.04589614,139.93,139.91,0.04644827]
[1745232631050,7.19239614,139.93,139.91,0.04644827]
[1745232633255,7.19239614,139.93,139.91,7.19364827]
[1745232633457,0.04589614,139.93,139.91,6.27382372]
[1745232633756,0.04589614,139.93,139.92,7.1467]
[1745232644359,26.04,139.99,139.97,7.1438]
[1745232645565,26.08848266,139.99,139.97,7.19799052]
[1745232646561,26.08848266,139.99,139.98,7.1437]
[1745232646762,26.08848266,139.99,139.97,0.05419052]
[1745232647466,26.08848266,139.99,139.97,7.19809052]
[1745232648569,26.08848266,139.99,139.97,0.05419052]
[1745232648768,6.22737545,139.98,139.97,0.05419052]
[1745232649364,35.26298266,139.99,139.97,0.05419052]
[1745232649669,7.1437,139.98,139.97,0.05419052]
[1745232651368,35.26298266,139.99,139.97,0.05419052]
[1745232652570,7.1437,139.98,139.97,0.05419052]
[1745232653070,28.11958266,139.99,139.97,0.05419052]
[1745232653267,26.08848266,139.99,139.98,7.1437]
[1745232653875,26.08848266,139.99,139.97,7.19809052]
[1745232657368,33.23168266,139.99,139.97,7.19809052]
[1745232657572,32.31585811,139.99,139.97,0.05419052]
[1745232658073,33.23188266,139.99,139.97,0.05419052]
[1745232658768,6.22737545,139.98,139.91,387.04]
[1745232658971,6.22737545,139.98,139.92,6.22737545]
[1745232659471,7.145,139.96,139.92,6.22737545]
[1745232659775,26.04,139.95,139.93,7.146]
[1745232659970,26.09377378,139.95,139.93,0.04674637]
[1745232660575,33.23927378,139.95,139.93,0.04674637]
[1745232660974,26.09377378,139.95,139.93,0.04674637]
[1745232661474,6.22737545,139.94,139.93,0.04674637]
[1745232662274,6.22737545,139.94,139.9,6.22737545]
[1745232662876,13.37337545,139.94,139.91,7.147]
[1745232663278,13.37337545,139.94,139.91,7.20061022]
[1745232664679,7.1463,139.93,139.91,7.20061022]
[1745232665780,13.37337545,139.94,139.91,7.20061022]
[1745232668879,13.37337545,139.94,139.92,7.1467]
[1745232669179,26.09377378,139.95,139.91,0.05361022]
[1745232669375,26.09377378,139.95,139.93,7.1462]
[1745232670279,33.23897378,139.95,139.93,7.1462]
[1745232670478,26.09377378,139.95,139.92,7.1466]
[1745232670779,6.22737545,139.94,139.91,0.05361022]
[1745232670979,6.22737545,139.92,139.91,0.05361022]
[1745232671774,13.37407545,139.92,139.91,0.05361022]
[1745232671980,13.37407545,139.92,139.86,367.22737545]
[1745232671981,6.22737545,139.92,139.86,361.0]
[1745232672180,6.22737545,139.89,139.84,6.22737545]
[1745232672479,13.37587545,139.89,139.87,7.1493]
[1745232673173,13.4292953,139.89,139.87,7.2031917]
[1745232674080,7.1488,139.88,139.87,0.0538917]
[1745232677384,13.4292953,139.89,139.87,0.0538917]
[1745232677979,6.2807953,139.89,139.87,7.2030917]
[1745232678184,0.05341985,139.89,139.87,7.2030917]
[1745232680888,0.05341985,139.89,139.88,7.1488]
[1745232684193,0.05341985,139.89,139.87,7.2027917]
[1745232684595,0.05341985,139.89,139.87,0.0538917]
[1745232684794,0.05341985,139.89,139.88,7.1488]
[1745232689397,0.05341985,139.89,139.88,13.37617545]
[1745232694503,0.05341985,139.89,139.88,7.1488]
[1745232702506,0.05341985,139.89,139.88,13.37617545]
[1745232708609,0.05341985,139.89,139.87,0.0538917]
[1745232709416,7.1488,139.88,139.87,0.0538917]
[1745232710205,13.37617545,139.88,139.87,0.0538917]
[1745232713414,0.05341985,139.89,139.87,0.0538917]
[1745232713914,7.20181985,139.89,139.87,0.0538917]
[1745232718618,0.05341985,139.89,139.87,7.2031917]
[1745232719217,0.05341985,139.89,139.88,7.1488]
[1745232720315,0.05341985,139.89,139.87,7.2028917]
[1745232720617,0.05341985,139.89,139.87,0.0538917]
[1745232721017,0.05341985,139.89,139.87,7.2029917]
[1745232721212,7.20181985,139.89,139.87,0.0538917]
[1745232721621,0.05341985,139.89,139.87,0.0538917]
[1745232722520,7.20191985,139.89,139.87,0.0538917]
[1745232722821,0.05341985,139.89,139.87,0.0538917]
[1745232724024,0.05341985,139.89,139.88,7.1488]
[1745232725728,0.05341985,139.89,139.87,7.2028917]
[1745232729929,7.20181985,139.89,139.87,7.2028917]
[1745232730126,6.22737545,139.88,139.87,0.0538917]
[1745232730624,13.37617545,139.88,139.87,0.0538917]
[1745232732227,6.22737545,139.88,139.87,0.0538917]
[1745232733232,0.05341985,139.89,139.87,7.2031917]
[1745232733427,0.05341985,139.89,139.87,0.0538917]
[1745232733830,0.05341985,139.89,139.87,7.2028917]
[1745232742036,26.02,139.88,139.87,7.2028917]
[1745232745842,33.1688,139.88,139.87,0.0538917]
[1745232746030,26.02,139.88,139.87,0.0538917]
[1745232746637,33.1688,139.88,139.87,0.0538917]
[1745232747435,7.1504,139.85,139.81,361.0]
[1745232747633,7.1504,139.85,139.8,8.26667545]
[1745232748236,13.37737545,139.86,139.83,7.151]
[1745232748539,13.42867099,139.86,139.83,7.20259469]
[1745232749341,13.42867099,139.86,139.84,7.1508]
[1745232749939,7.20129554,139.86,139.84,7.1508]
[1745232751339,0.05129554,139.86,139.84,7.1508]
[1745232751542,0.05129554,139.86,139.85,13.37767545]
[1745232763750,26.02,139.91,139.9,7.1478]
[1745232766858,0.04823706,139.92,139.91,7.1473]
[1745232767758,0.04823706,139.92,139.9,7.1476]
[1745232769564,0.04823706,139.92,139.89,0.05262967]
[1745232769565,0.04823706,139.92,139.91,7.1473]
[1745232770861,0.04823706,139.92,139.91,13.37467545]
[1745232772063,0.04823706,139.92,139.91,7.1473]
[1745232786667,0.04823706,139.92,139.9,13.37487545]
[1745232788566,6.27561251,139.92,139.89,0.05262967]
[1745232788772,6.22737545,139.9,139.89,0.05262967]
[1745232788973,32.22737545,139.9,139.89,0.05262967]
[1745232789272,39.37517545,139.9,139.89,0.05262967]
[1745232797770,7.1495,139.87,139.85,6.22737545]
[1745232797973,6.22737545,139.88,139.82,6.22737545]
[1745232798373,7.1501,139.86,139.83,7.1513]
[1745232798580,33.1501,139.86,139.83,7.1513]
[1745232798874,33.19917541,139.86,139.83,7.19776105]
[1745232799073,26.04907541,139.86,139.84,7.1508]
[1745232800575,33.19907541,139.86,139.83,7.19756105]
[1745232801777,33.19907541,139.86,139.84,7.1507]
[1745232802076,26.04907541,139.86,139.84,6.22737545]
[1745232802477,0.04907541,139.86,139.84,6.22737545]
[1745232802775,0.04907541,139.86,139.85,7.1503]
[1745232811078,26.0,139.89,139.88,7.1488]
[1745232811480,7.1475,139.91,139.87,6.22737545]
[1745232811783,7.1475,139.91,139.88,7.1487]
[1745232812184,7.20211666,139.91,139.88,7.20358089]
[1745232812482,7.1478,139.9,139.88,7.20358089]
[1745232812685,0.05461666,139.91,139.88,7.20358089]
[1745232812984,7.20211666,139.91,139.88,7.20358089]
[1745232813280,7.20211666,139.91,139.88,0.05488089]
[1745232813485,7.20211666,139.91,139.89,7.1483]
[1745232815989,0.05461666,139.91,139.89,7.1483]
[1745232816784,0.05461666,139.91,139.9,7.1478]
[1745232817787,566.2,139.94,139.93,7.1462]
[1745232817987,26.0,139.95,139.93,7.1462]
[1745232818187,26.0,139.95,139.93,6.22737545]
[1745232818389,6.22737545,139.99,139.93,6.22737545]
[1745232818591,33.144,139.98,139.93,6.22737545]
[1745232818789,33.144,139.98,139.95,7.145]
[1745232818989,0.05274324,139.97,139.95,7.145]
[1745232821602,0.05274324,139.97,139.96,7.1447]
[1745232821996,0.05274324,139.97,139.94,0.04834905]
[1745232822200,0.05274324,139.97,139.95,7.145]
[1745232823400,0.05274324,139.97,139.94,0.04834905]
[1745232824303,0.05274324,139.97,139.95,7.1449]
[1745232824499,0.05274324,139.97,139.95,6.22737545]
[1745232824900,0.05274324,139.97,139.96,7.1447]
[1745232825498,0.05274324,139.97,139.95,6.22737545]
[1745232826401,0.05274324,139.97,139.96,7.1447]
[1745232831302,26.0,139.98,139.95,6.22737545]
[1745232831507,26.0,139.98,139.97,13.37157545]
[1745232831707,599.3025,140.01,139.97,6.22737545]
[1745232832206,599.3025,140.01,139.99,7.1431]
[1745232832603,599.35065074,140.01,139.99,7.18850048]
[1745232833407,26.02815074,140.01,140.0,7.1427]
[1745232833607,25.91743259,140.01,140.0,7.1427]
[1745232833807,0.04815074,140.01,140.0,7.1427]
[1745232842218,0.04815074,140.01,139.99,0.04540048]
[1745232842617,0.04815074,140.01,139.99,13.41567593]
[1745232843815,0.04815074,140.01,140.0,7.1427]
[1745232856722,254.87454144,140.2,140.07,7.1391]
[1745232856723,27.9472,140.1,140.07,7.1391]
[1745232856922,27.9472,140.1,140.07,13.36647545]
[1745232857421,35.085,140.1,140.07,13.36647545]
[1745232857823,35.13267863,140.1,140.07,13.4160968]
[1745232858021,27.99487863,140.1,140.07,0.04962135]
[1745232858725,35.13267863,140.1,140.07,7.18862135]
[1745232858926,26.00767863,140.1,140.07,6.2769968]
[1745232859224,26.00767863,140.1,140.07,0.04962135]
[1745232859624,33.14557863,140.1,140.07,0.04962135]
[1745232860225,33.14557863,140.1,140.07,7.18852135]
[1745232860422,33.14557863,140.1,140.07,0.04962135]
[1745232860617,26.00767863,140.1,140.07,0.04962135]
[1745232860834,32.23505408,140.1,140.07,0.04962135]
[1745232861625,7.1384,140.09,140.07,0.04962135]
[1745232862422,39.37285408,140.1,140.07,0.04962135]
[1745232862726,39.37285408,140.1,140.07,7.18862135]
[1745232863027,32.23505408,140.1,140.07,0.04962135]
[1745232863228,6.22737545,140.08,140.03,7.1411]
[1745232863523,7.1396,140.07,140.03,7.1411]
[1745232863826,25.94,140.06,140.03,7.1411]
[1745232864331,25.98771623,140.06,140.04,6.22737545]
[1745232864827,0.04771623,140.06,140.05,7.1401]
[1745232865527,0.04771623,140.06,140.05,13.36747545]
[1745232886651,0.04771623,140.06,140.05,7.1401]
[1745232886850,0.04771623,140.06,140.04,7.1406]
[1745232887250,0.04771623,140.06,140.03,0.04537095]
[1745232887549,7.18751623,140.06,140.03,7.18607095]
[1745232887849,0.04771623,140.06,140.03,7.18607095]
[1745232888050,26.26,140.05,140.03,7.18607095]
[1745232888446,26.26,140.05,140.03,0.04537095]
[1745232889145,7.1406,140.04,140.03,0.04537095]
[1745232900357,13.36797545,140.04,140.03,0.04537095]
[1745232900559,6.22737545,140.04,140.0,7.1424]
[1745232901159,7.1414,140.03,140.0,7.1424]
[1745232901564,7.19397558,140.03,140.0,7.18990558]
[1745232902762,7.19397558,140.03,140.01,7.1421]
[1745232903365,0.05257558,140.03,140.02,7.1416]
[1745232904763,0.05257558,140.03,140.01,7.1419]
[1745232906565,0.05257558,140.03,140.02,7.1416]
[1745232907768,0.05257558,140.03,140.01,13.36927545]
[1745232908361,0.05257558,140.03,140.02,7.1416]
[1745232909167,0.05257558,140.03,140.01,13.36927545]
[1745232909966,0.05257558,140.03,140.02,7.1416]
[1745232910166,0.05257558,140.03,140.01,6.22737545]
[1745232910368,7.19377558,140.03,140.0,6.27488103]
[1745232910569,7.19377558,140.03,140.0,13.41718103]
[1745232910970,7.19377558,140.03,140.0,6.27488103]
[1745232911571,0.05257558,140.03,140.01,7.1421]
[1745232913165,0.05257558,140.03,140.02,7.1416]
[1745232921671,0.05257558,140.03,140.02,13.36897545]
[1745232922077,26.0,140.08,140.02,6.22737545]
[1745232922277,26.0,140.08,140.04,6.22737545]
[1745232922580,7.1394,140.07,140.04,13.36767545]
[1745232924081,6.27950382,140.07,140.04,0.0519152]
[1745232924480,7.1396,140.06,140.04,0.0519152]
[1745232925379,7.1401,140.05,140.04,0.0519152]
[1745232929383,33.1201,140.05,140.04,0.0519152]
[1745232931586,25.98,140.05,140.04,0.0519152]
[1745232932280,33.1201,140.05,140.04,0.0519152]
[1745232932787,25.98,140.05,140.04,0.0519152]
[1745232933485,33.1201,140.05,140.04,0.0519152]
[1745232934887,39.34747545,140.05,140.04,0.0519152]
[1745232935086,7.1407,140.04,140.01,7.142]
[1745232935483,32.20737545,140.05,140.01,7.142]
[1745232935484,7.1412,140.03,140.01,7.142]
[1745232935789,7.1412,140.03,140.0,7.1424]
[1745232936089,0.04905304,140.03,140.01,7.1421]
[1745232937892,7.19025304,140.03,140.01,7.1421]
[1745232938788,0.04905304,140.03,140.01,7.1421]
[1745232941295,7.19025304,140.03,140.01,7.1421]
[1745232941686,7.19025304,140.03,140.02,7.1416]
[1745232941687,0.04905304,140.03,140.02,7.1416]
[1745232943194,25.94,140.08,140.01,11.99817545]
[1745232943496,25.94,140.08,140.04,6.22737545]
[1745232944094,33.0788,140.08,140.05,7.14]
[1745232944294,0.04576352,140.07,140.05,7.18731168]
[1745232945096,0.04576352,140.07,140.06,7.1396]
[1745232946995,0.04576352,140.07,140.05,7.18721168]
[1745232947192,7.18516352,140.07,140.05,0.04731168]
[1745232947496,13.41253897,140.07,140.05,0.04731168]
[1745232948097,6.27313897,140.07,140.05,0.04731168]
[1745232949098,0.04576352,140.07,140.05,0.04731168]
[1745232949496,0.04576352,140.07,140.06,7.1396]
[1745232958601,3.9425,140.12,140.06,7.1396]
[1745232958602,22.67270181,140.16,140.06,6.22737545]
[1745232958800,6.22737545,140.13,140.08,6.22737545]
[1745232959198,7.1368,140.12,140.09,7.1378]
[1745232959597,7.1368,140.12,140.1,14.80340627]
[1745232959801,7.18694192,140.12,140.1,14.80340627]
[1745232960001,7.18694192,140.12,140.11,7.66580627]
[1745232960405,0.05014192,140.12,140.11,7.66580627]
[1745232961506,7.18664192,140.12,140.11,7.66580627]
[1745232962504,7.1372,140.11,140.09,0.04510048]
[1745232962705,25.94,140.1,140.09,0.04510048]
[1745232963006,25.94,140.1,140.09,7.70664184]
[1745232963505,25.94,140.1,140.09,7.18320048]
[1745232964605,25.94,140.1,140.09,0.04510048]
[1745232965906,25.94,140.1,140.09,7.18320048]
[1745232970406,33.0776,140.1,140.09,0.04510048]
[1745232974905,25.94,140.1,140.09,0.04510048]
[1745232976310,33.0776,140.1,140.09,0.04510048]
[1745232977513,25.94,140.1,140.09,7.18320048]
[1745232980616,6.27751737,140.12,140.09,0.04510048]
[1745232981114,6.27751737,140.12,140.1,7.1372]
[1745232981314,0.05014192,140.12,140.1,7.1372]
[1745232982514,7.18684192,140.12,140.1,7.1372]
[1745232982915,0.05014192,140.12,140.1,7.1372]
[1745232985519,7.18674192,140.12,140.1,7.1372]
[1745232986317,0.05014192,140.12,140.1,7.1372]
[1745232986620,0.05014192,140.12,140.11,7.1371]
[1745232987119,0.05014192,140.12,140.09,0.04510048]
[1745232987420,0.05014192,140.12,140.1,7.1374]
[1745232988617,6.22737545,140.11,140.09,0.04510048]
[1745232989119,10.16297545,140.11,140.03,6.22737545]
[1745232989312,13.36617545,140.08,140.05,7.1398]
[1745232989510,39.30617545,140.08,140.05,7.1398]
[1745232989715,32.16737545,140.08,140.03,6.22737545]
[1745232989920,39.30617545,140.08,140.05,7.1397]
[1745232990122,0.04755014,140.07,140.05,7.1397]
[1745232992122,0.04755014,140.07,140.06,7.1396]
[1745232992622,0.04755014,140.07,140.05,13.36727545]
[1745232992918,0.04755014,140.07,140.05,6.22737545]
[1745232994222,0.04755014,140.07,140.04,0.04599891]
[1745232995023,7.18685014,140.07,140.04,7.18639891]
[1745232995222,0.04755014,140.07,140.04,6.27337436]
[1745232996423,0.04755014,140.07,140.05,7.1397]
[1745232997020,0.04755014,140.07,140.06,7.1396]
[1745232998419,0.04755014,140.07,140.06,13.36697545]
[1745233005424,5.014e-05,140.07,140.06,13.36697545]
[1745233009336,5.014e-05,140.07,140.06,15.43427545]
[1745233015243,25.92,140.14,140.06,8.29467545]
[1745233015446,25.92,140.14,140.1,6.22737545]
[1745233015945,25.92,140.14,140.13,7.136]
[1745233017545,33.0557,140.14,140.12,0.04987791]
[1745233018447,25.92,140.14,140.12,0.04987791]
[1745233018648,25.92,140.14,140.12,7.18617791]
[1745233019747,33.0559,140.14,140.12,0.04987791]
[1745233020248,13.36337545,140.13,140.12,0.04987791]
[1745233020444,6.22737545,140.13,140.06,361.0]
[1745233020749,6.22737545,140.11,140.05,25.94]
[1745233020946,33.0578,140.1,140.04,6.22737545]
[1745233021247,25.92,140.1,140.06,6.22737545]
[1745233021447,25.92,140.1,140.08,7.1383]
[1745233021649,0.04763413,140.09,140.08,7.1383]
[1745233026755,0.04763413,140.09,140.07,7.18650309]
[1745233026951,0.04763413,140.09,140.07,0.04770309]
[1745233027154,6.27500958,140.09,140.07,0.04770309]
[1745233027355,0.04763413,140.09,140.07,0.04770309]
[1745233027856,0.04763413,140.09,140.07,7.18640309]
[1745233029755,0.04763413,140.09,140.08,7.1386]
[1745233030257,0.04763413,140.09,140.07,7.18660309]
[1745233032562,6.22737545,140.08,140.07,0.04770309]
[1745233035061,13.36597545,140.08,140.07,0.04770309]
[1745233035655,6.22737545,140.08,140.07,0.04770309]
[1745233036261,13.36597545,140.08,140.07,0.04770309]
[1745233041962,6.22737545,140.08,140.07,0.04770309]
[1745233042166,2.02003413,140.09,140.07,0.04770309]
[1745233043267,9.15813413,140.09,140.07,7.18650309]
[1745233047269,0.04763413,140.09,140.07,0.04770309]
[1745233047769,0.04763413,140.09,140.08,7.1386]
[1745233047971,0.04763413,140.09,140.07,6.27507854]
[1745233048169,0.04763413,140.09,140.07,0.04770309]
[1745233048370,0.04763413,140.09,140.07,7.18660309]
[1745233048669,0.04763413,140.09,140.07,0.04770309]
[1745233049171,0.04763413,140.09,140.07,7.18660309]
[1745233053275,0.04763413,140.09,140.08,7.1386]
[1745233053463,0.04763413,140.09,140.07,0.04770309]
[1745233053870,0.04763413,140.09,140.07,7.18650309]
[1745233054068,7.18573413,140.09,140.07,0.04770309]
[1745233055870,7.18573413,140.09,140.07,7.18670309]
[1745233056473,7.18573413,140.09,140.07,0.04770309]
[1745233059473,13.36597545,140.08,140.07,0.04770309]
[1745233064573,7.1402,140.05,140.01,364.9785]
[1745233064774,32.14737545,140.06,140.01,371.20587545]
[1745233065177,39.28727545,140.06,140.04,7.1406]
[1745233065679,39.28727545,140.06,140.03,7.1407]
[1745233065883,39.33816375,140.06,140.04,0.04578042]
[1745233066277,39.33816375,140.06,140.04,7.18638042]
[1745233067581,39.33816375,140.06,140.04,0.04578042]
[1745233070989,32.19826375,140.06,140.04,7.18638042]
[1745233071891,25.9708883,140.06,140.05,7.1401]
[1745233083396,33.1104883,140.06,140.04,7.18618042]
[1745233083796,39.33786375,140.06,140.04,0.04578042]
[1745233084295,39.33786375,140.06,140.04,7.18628042]
[1745233084997,33.1104883,140.06,140.04,7.18628042]
[1745233085198,25.9708883,140.06,140.04,7.18628042]
[1745233085998,33.1108883,140.06,140.04,7.18628042]
[1745233091103,25.9708883,140.06,140.04,7.18628042]
[1745233091306,25.9708883,140.06,140.05,13.36747545]
[1745233091500,0.0508883,140.06,140.05,13.36747545]
[1745233095706,0.0508883,140.06,140.05,7.1401]
[1745233101007,0.0508883,140.06,140.05,13.36747545]
[1745233106813,0.0508883,140.06,140.05,7.1401]
[1745233107014,0.0508883,140.06,140.05,13.36747545]
[1745233108915,0.0508883,140.06,140.05,7.1401]
[1745233111515,32.12737545,140.12,140.05,6.22737545]
[1745233111714,6.22737545,140.1,140.05,6.22737545]
[1745233112014,13.36517545,140.1,140.07,7.1388]
[1745233112416,13.36517545,140.1,140.05,6.22737545]
[1745233112615,13.41204143,140.1,140.07,0.05389845]
[1745233113317,13.41204143,140.1,140.08,7.1385]
[1745233114217,25.9,140.09,140.08,7.1385]
[1745233118517,25.9,140.09,140.07,7.19269845]
[1745233120323,25.9,140.09,140.08,7.1386]
[1745233121025,0.04686598,140.1,140.09,7.1381]
[1745233141731,7.18446598,140.1,140.08,7.1384]
[1745233142536,7.18446598,140.1,140.07,7.19269845]
[1745233144140,33.06446598,140.1,140.07,7.19269845]
[1745233145242,33.06446598,140.1,140.08,7.1384]
[1745233145936,33.06446598,140.1,140.07,7.19269845]
[1745233146141,25.92686598,140.1,140.07,0.05389845]
[1745233147344,25.92686598,140.1,140.07,7.19269845]
[1745233147345,33.06486598,140.1,140.07,7.19269845]
[1745233147538,25.92686598,140.1,140.07,7.19269845]
[1745233148543,25.92686598,140.1,140.08,7.1385]
[1745233149038,33.06446598,140.1,140.08,7.1385]
[1745233150146,33.06446598,140.1,140.07,7.19269845]
[1745233150443,33.06446598,140.1,140.07,0.05389845]
[1745233150845,33.06446598,140.1,140.08,7.1383]
[1745233152046,25.92686598,140.1,140.08,7.1383]
[1745233152748,33.06446598,140.1,140.08,7.1383]
[1745233157049,7.1384,140.09,140.07,0.05389845]
[1745233157248,6.22737545,140.08,140.07,0.05389845]
[1745233157654,13.36597545,140.08,140.07,0.05389845]
[1745233163356,13.36567545,140.09,140.07,0.05389845]
[1745233164860,7.1386,140.08,140.07,0.05389845]
[1745233166059,13.36567545,140.09,140.07,0.05389845]
[1745233180073,6.22737545,140.09,140.07,0.05389845]
[1745233180774,13.36587545,140.09,140.07,0.05389845]
[1745233182975,0.04686598,140.1,140.09,7.1381]
[1745233183471,0.04686598,140.1,140.07,0.05389845]
[1745233183776,0.04686598,140.1,140.07,7.19269845]
[1745233184075,0.04686598,140.1,140.07,0.05389845]
[1745233184270,32.9983,140.09,140.07,0.05389845]
[1745233185478,7.1386,140.08,140.07,0.05389845]
[1745233186577,0.04686598,140.1,140.07,0.05389845]
[1745233187079,0.04686598,140.1,140.09,7.1381]
[1745233190278,0.04686598,140.1,140.07,0.05389845]
[1745233190478,6.22737545,140.09,140.07,0.05389845]
[1745233190680,0.04686598,140.1,140.07,0.05389845]
[1745233190975,7.18476598,140.1,140.07,0.05389845]
[1745233191180,7.18476598,140.1,140.07,7.19279845]
[1745233193283,7.1381,140.09,140.07,7.19279845]
[1745233193884,7.18466598,140.1,140.07,7.19279845]
[1745233195983,7.1385,140.09,140.07,0.05389845]
[1745233196279,25.86,140.08,140.07,0.05389845]
[1745233197387,32.9986,140.08,140.07,0.05389845]
[1745233197585,25.86,140.08,140.02,8.14347545]
[1745233197983,7.1394,140.07,140.04,7.1402]
[1745233198281,25.86,140.08,140.04,6.22737545]
[1745233198485,25.86,140.08,140.05,7.1399]